bitfinex/quotes_SOLUSD_20250216
["timestamp","ask_amount","ask_price","bid_price","bid_amount"]
[1739748056355,0.03,188.6,188.58,15.19751425]
[1739748056557,0.03,188.6,188.59,15.19751425]
[1739748058583,0.03,188.6,188.59,9.7198669]
[1739748058767,0.03,188.6,188.59,15.0223669]
[1739748058968,0.03,188.6,188.59,9.7198669]
[1739748060176,0.03,188.6,188.59,72.76364591]
[1739748061178,0.03,188.6,188.59,78.06614591]
[1739748062083,0.03,188.6,188.59,72.76364591]
[1739748062882,0.03,188.6,188.59,78.06614591]
[1739748063185,0.03,188.6,188.59,91.47799444]
[1739748063385,0.03,188.6,188.59,92.27300625]
[1739748063682,0.0001,188.6,188.59,92.27300625]
[1739748064264,0.0001,188.64,188.63,20.0]
[1739748064464,0.0001,188.64,188.63,93.55852745]
[1739748065670,0.0001,188.64,188.63,98.85982745]
[1739748067692,0.0001,188.64,188.63,112.27167598]
[1739748067901,0.0001,188.64,188.63,111.47679444]
[1739748068066,0.0001,188.64,188.63,151.35626204]
[1739748068267,0.063,188.72,188.67,20.0]
[1739748068596,0.063,188.72,188.7,9.7198669]
[1739748069961,0.063,188.72,188.7,15.0190669]
[1739748071480,0.063,188.72,188.7,5.2992]
[1739748071881,0.063,188.72,188.7,72.76364591]
[1739748073293,0.063,188.72,188.71,15.0189669]
[1739748073496,0.063,188.72,188.71,78.06274591]
[1739748075395,0.063,188.72,188.71,91.47459444]
[1739748075780,0.03,188.76,188.71,101.19446134]
[1739748076083,0.03,188.76,188.75,29.7198669]
[1739748076292,0.03,188.76,188.75,93.55804086]
[1739748077994,0.03,188.76,188.75,112.26788939]
[1739748078174,0.03,188.76,188.75,111.47349444]
[1739748079666,0.0001,188.76,188.75,111.47349444]
[1739748081184,0.0001,188.76,188.75,98.06164591]
[1739748081581,0.0001,188.76,188.75,63.04377901]
[1739748084297,0.0001,188.76,188.75,44.63080684]
[1739748084972,0.0001,188.76,188.75,65.89074864]
[1739748085200,0.0001,188.76,188.75,59.79816633]
[1739748085400,0.0001,188.76,188.75,44.63080684]
[1739748086081,0.0001,188.76,188.75,59.79816633]
[1739748086295,0.0001,188.76,188.75,65.09616633]
[1739748087206,0.0001,188.76,188.75,44.63080684]
[1739748088921,1.6599,188.76,188.75,44.63080684]
[1739748089724,0.0001,188.76,188.75,44.63080684]
[1739748089888,0.0001,188.76,188.74,20.46555949]
[1739748090607,0.0001,188.76,188.75,15.16735949]
[1739748091309,0.0001,188.76,188.75,20.46535949]
[1739748091492,0.0001,188.76,188.75,5.298]
[1739748091696,0.0001,188.76,188.73,15.16735949]
[1739748092410,0.0001,188.76,188.72,20.46615949]
[1739748092905,0.0001,188.76,188.73,15.16735949]
[1739748093104,0.0001,188.76,188.71,0.063]
[1739748093311,0.0001,188.76,188.71,44.69380684]
[1739748097594,0.0001,188.76,188.71,0.063]
[1739748097791,8.0,188.75,188.71,0.063]
[1739748099719,5.2982,188.74,188.71,0.063]
[1739748104345,8.0,188.75,188.71,0.063]
[1739748105945,0.0001,188.76,188.71,15.23035949]
[1739748107137,0.0001,188.76,188.74,15.16735949]
[1739748107541,0.0001,188.76,188.72,15.16735949]
[1739748108127,0.0001,188.76,188.72,20.46615949]
[1739748108649,0.0001,188.76,188.72,15.00677909]
[1739748109146,0.0001,188.76,188.71,5.362]
[1739748110636,0.0001,188.76,188.71,49.99280684]
[1739748111023,0.0001,188.76,188.71,59.70078593]
[1739748112352,0.0001,188.76,188.71,54.40178593]
[1739748112559,0.0001,188.76,188.71,44.69380684]
[1739748114364,0.0001,188.76,188.71,49.99280684]
[1739748114548,0.0001,188.76,188.71,59.70078593]
[1739748114948,0.0001,188.76,188.73,9.70797909]
[1739748115166,0.0001,188.76,188.75,9.70797909]
[1739748115470,0.0001,188.76,188.75,54.33878593]
[1739748116270,0.0001,188.76,188.75,44.63080684]
[1739748119664,0.0001,188.76,188.72,59.63758593]
[1739748120644,0.0001,188.76,188.72,44.63080684]
[1739748120853,0.0001,188.76,188.73,9.70797909]
[1739748121461,0.0001,188.76,188.72,59.63758593]
[1739748121656,0.0001,188.76,188.72,44.63080684]
[1739748121862,0.0001,188.76,188.71,0.063]
[1739748122461,5.2978,188.76,188.71,0.063]
[1739748122663,5.2978,188.76,188.69,59.20128593]
[1739748122971,5.2978,188.76,188.68,9.70797909]
[1739748123559,5.2978,188.76,188.66,59.20218593]
[1739748125276,18.5421,188.76,188.66,59.26518593]
[1739748126177,18.5421,188.76,188.66,44.25680684]
[1739748126366,5.2978,188.76,188.67,9.70797909]
[1739748126677,5.2978,188.76,188.68,9.70797909]
[1739748126868,5.2978,188.76,188.67,9.70797909]
[1739748127070,5.2978,188.76,188.66,59.26518593]
[1739748127378,18.5421,188.76,188.66,53.96478593]
[1739748127578,18.5421,188.76,188.66,59.26518593]
[1739748128278,18.5421,188.76,188.66,53.96478593]
[1739748128859,18.5421,188.76,188.66,59.26518593]
[1739748129779,5.2978,188.76,188.67,9.70797909]
[1739748129977,5.2978,188.76,188.68,9.70797909]
[1739748130158,0.0001,188.76,188.7,9.70797909]
[1739748130358,0.0001,188.76,188.71,9.70797909]
[1739748130561,0.0001,188.76,188.73,9.70797909]
[1739748130760,0.0001,188.76,188.74,9.70797909]
[1739748130963,0.0001,188.76,188.75,9.70797909]
[1739748132656,0.0001,188.76,188.75,15.00597909]
[1739748134972,0.0001,188.76,188.75,15.80039437]
[1739748135971,0.0001,188.76,188.75,15.00597909]
[1739748138795,0.0001,188.76,188.75,5.298]
[1739748138957,0.0001,188.76,188.73,5.2984]
[1739748140770,0.0001,188.76,188.72,53.90178593]
[1739748140973,0.0001,188.76,188.72,59.20048593]
[1739748141286,0.0001,188.76,188.73,9.70797909]
[1739748141870,0.0001,188.76,188.72,59.20048593]
[1739748142068,12.7394,188.83,188.72,59.20048593]
[1739748143194,18.0352,188.83,188.72,59.20048593]
[1739748145074,5.2963,188.81,188.72,59.20048593]
[1739748145763,4.7963,188.81,188.72,59.20048593]
[1739748147797,4.7963,188.81,188.72,49.49250684]
[1739748150499,4.7963,188.81,188.72,59.20048593]
[1739748152197,4.7963,188.81,188.72,53.90178593]
[1739748152504,18.0371,188.81,188.72,44.19380684]
[1739748153305,18.0371,188.81,188.72,49.49260684]
[1739748154111,18.0371,188.81,188.72,44.19380684]
[1739748156185,18.0371,188.81,188.72,49.49250684]
[1739748156492,18.0371,188.81,188.72,59.20048593]
[1739748156689,18.0371,188.81,188.72,44.19380684]
[1739748158595,8.30822539,188.8,188.72,44.19380684]
[1739748158902,5.2968,188.79,188.72,44.19380684]
[1739748159423,18.539,188.79,188.69,53.96478593]
[1739748159619,18.539,188.79,188.69,44.25680684]
[1739748160488,8.30822539,188.78,188.69,44.25680684]
[1739748160695,5.2974,188.77,188.69,44.25680684]
[1739748163100,5.2974,188.77,188.69,59.26438593]
[1739748164123,5.2974,188.77,188.69,49.55640684]
[1739748164796,5.2974,188.77,188.69,44.25680684]
[1739748165015,8.30822539,188.79,188.69,44.25680684]
[1739748165209,5.2971,188.78,188.69,44.25680684]
[1739748165930,18.54,188.78,188.69,44.25680684]
[1739748166130,6.4993,188.77,188.69,44.25680684]
[1739748167325,5.2977,188.76,188.69,44.25680684]
[1739748168997,18.542,188.76,188.69,20.063]
[1739748170123,18.542,188.76,188.69,0.063]
[1739748170419,18.542,188.76,188.69,20.063]
[1739748170798,18.542,188.76,188.69,0.063]
[1739748171724,1.6494,188.75,188.69,20.063]
[1739748172298,1.6494,188.75,188.69,0.063]
[1739748172498,1.6494,188.75,188.69,20.063]
[1739748172829,1.6494,188.75,188.69,0.063]
[1739748172999,18.5439,188.74,188.69,0.063]
[1739748174916,5.2982,188.74,188.69,0.063]
[1739748179528,1.6494,188.75,188.69,0.063]
[1739748179721,6.9475,188.75,188.69,0.063]
[1739748185353,5.2977,188.76,188.69,0.063]
[1739748186126,5.2977,188.76,188.69,7.91459902]
[1739748186424,5.2977,188.76,188.69,13.21399902]
[1739748186633,5.2977,188.76,188.69,5.3624]
[1739748186833,5.2977,188.76,188.69,0.063]
[1739748191760,5.2977,188.76,188.69,5.3626]
[1739748193758,5.2974,188.77,188.7,7.85159902]
[1739748193934,8.30822539,188.78,188.72,27.85159902]
[1739748194957,8.30822539,188.78,188.72,20.0]
[1739748196057,8.30822539,188.78,188.72,33.15039902]
[1739748196237,8.30822539,188.78,188.73,7.85159902]
[1739748197063,13.60492539,188.8,188.73,7.85159902]
[1739748197571,13.60492539,188.8,188.73,13.14989902]
[1739748197864,13.60492539,188.8,188.72,69.49260684]
[1739748199475,13.60492539,188.8,188.72,49.49260684]
[1739748200279,13.60492539,188.8,188.72,57.34420586]
[1739748202275,5.2967,188.8,188.72,57.34420586]
[1739748203684,5.2967,188.8,188.72,49.49260684]
[1739748204656,5.2967,188.8,188.72,57.34420586]
[1739748205471,5.2967,188.8,188.72,49.49260684]
[1739748205676,13.60492539,188.8,188.72,49.49260684]
[1739748206481,13.60492539,188.8,188.72,57.34420586]
[1739748207161,5.2967,188.8,188.72,57.34420586]
[1739748208670,5.2967,188.8,188.72,57.40720586]
[1739748208982,5.2967,188.8,188.72,49.55560684]
[1739748216697,5.2967,188.8,188.72,57.40720586]
[1739748217610,5.2967,188.8,188.73,7.85159902]
[1739748217796,13.63452539,188.81,188.74,7.85159902]
[1739748217975,13.63452539,188.81,188.72,57.40720586]
[1739748222012,13.63452539,188.81,188.72,57.40720586]
[1739748225006,5.3263,188.81,188.72,57.40720586]
[1739748226806,13.63452539,188.81,188.72,57.40720586]
[1739748227311,13.63452539,188.81,188.73,7.85159902]
[1739748228604,13.63452539,188.81,188.74,5.2982]
[1739748229303,13.63452539,188.81,188.74,13.14979902]
[1739748230211,5.3263,188.81,188.74,13.14979902]
[1739748234600,0.03,188.81,188.76,7.85159902]
[1739748234799,0.03,188.81,188.77,7.85159902]
[1739748235394,0.03,188.81,188.77,7.84116475]
[1739748236821,0.03,188.81,188.78,7.84116475]
[1739748237115,0.03,188.81,188.77,5.2973]
[1739748237116,0.03,188.81,188.8,7.84116475]
[1739748238017,0.03,188.81,188.8,52.03497159]
[1739748238807,0.03,188.81,188.8,57.33157159]
[1739748239315,0.03,188.81,188.8,57.32792514]
[1739748242117,0.03,188.81,188.76,13.1349183]
[1739748242523,0.03,188.81,188.75,57.32922514]
[1739748242722,0.03,188.81,188.75,44.19380684]
[1739748243027,0.03,188.81,188.72,0.063]
[1739748243525,18.5381,188.8,188.72,0.063]
[1739748244929,6.0314,188.78,188.72,0.063]
[1739748245222,1.558,188.76,188.72,0.063]
[1739748245417,20.0,188.75,188.72,0.063]
[1739748245607,5.2982,188.74,188.72,0.063]
[1739748246315,6.8559,188.76,188.72,0.063]
[1739748246820,8.32319244,188.75,188.72,0.063]
[1739748248628,6.8558,188.76,188.72,0.063]
[1739748249726,1.558,188.76,188.72,0.063]
[1739748249899,6.8558,188.76,188.72,0.063]
[1739748250930,1.558,188.76,188.72,0.063]
[1739748252128,6.8558,188.76,188.72,0.063]
[1739748254632,1.558,188.76,188.72,0.063]
[1739748255145,6.8558,188.76,188.72,0.063]
[1739748255852,1.558,188.76,188.72,0.063]
[1739748256864,19.65169244,188.78,188.72,0.063]
[1739748257549,11.3285,188.78,188.72,0.063]
[1739748259758,5.2966,188.8,188.72,7.9005183]
[1739748260052,5.2966,188.8,188.74,7.8375183]
[1739748261161,5.2966,188.8,188.74,13.1356183]
[1739748261346,5.2966,188.8,188.74,5.2981]
[1739748264257,5.2966,188.8,188.73,7.8375183]
[1739748264552,5.2966,188.8,188.73,5.2985]
[1739748265661,5.2966,188.8,188.73,5.1985]
[1739748267147,5.2966,188.8,188.73,7.8375183]
[1739748267760,0.03,188.81,188.75,7.8375183]
[1739748268064,5.3264,188.81,188.74,7.8375183]
[1739748268463,0.03,188.81,188.74,7.8375183]
[1739748269550,0.03,188.81,188.75,5.298]
[1739748273263,0.03,188.81,188.74,13.1357183]
[1739748276277,0.03,188.81,188.76,7.8375183]
[1739748276572,0.03,188.81,188.77,7.8375183]
[1739748276759,0.03,188.81,188.75,7.8375183]
[1739748277779,0.03,188.81,188.76,5.2977]
[1739748279267,0.03,188.81,188.76,7.8375183]
[1739748281071,0.03,188.81,188.77,7.8375183]
[1739748281472,0.03,188.81,188.78,7.8375183]
[1739748282564,0.03,188.81,188.78,13.1344183]
[1739748284676,0.03,188.81,188.79,7.8375183]
[1739748286656,0.03,188.81,188.79,13.1342183]
[1739748293096,0.03,188.81,188.78,13.1345183]
[1739748294563,0.03,188.81,188.79,7.8375183]
[1739748295995,0.03,188.81,188.79,13.1343183]
[1739748297988,0.03,188.81,188.8,7.8375183]
[1739748299873,0.03,188.81,188.8,13.1341183]
[1739748307409,0.03,188.81,188.79,7.8375183]
[1739748307708,0.03,188.81,188.74,7.8375183]
[1739748307905,0.03,188.81,188.74,5.298]
[1739748308120,0.03,188.81,188.73,0.063]
[1739748308303,6.2582,188.8,188.73,0.063]
[1739748309288,8.2582,188.8,188.73,0.063]
[1739748309493,5.2977,188.76,188.73,0.063]
[1739748311477,25.2974,188.77,188.73,0.063]
[1739748313396,20.0,188.74,188.73,0.063]
[1739748313599,25.2982,188.74,188.73,0.063]
[1739748315606,45.06624853,188.74,188.73,0.063]
[1739748315780,46.62474853,188.74,188.73,0.063]
[1739748317384,46.62474853,188.74,188.72,0.05445957]
[1739748320098,13.41184853,188.73,188.72,0.05445957]
[1739748320402,14.41184853,188.73,188.72,0.05445957]
[1739748321309,34.41184853,188.7,188.69,0.063]
[1739748321814,33.41184853,188.7,188.69,0.063]
[1739748322010,38.71124853,188.7,188.69,0.063]
[1739748322503,39.71124853,188.7,188.69,0.063]
[1739748323896,38.71124853,188.7,188.69,0.063]
[1739748324510,25.2994,188.7,188.69,0.063]
[1739748327803,39.71124853,188.7,188.69,0.063]
[1739748328111,13.41184853,188.68,188.66,0.063]
[1739748329310,20.0,188.68,188.66,0.063]
[1739748330193,5.3002,188.67,188.66,0.063]
[1739748338532,13.41184853,188.66,188.59,0.063]
[1739748338833,13.41184853,188.64,188.59,0.063]
[1739748338997,53.4,188.68,188.59,0.063]
[1739748338998,5.2991,188.71,188.63,7.8375183]
[1739748339318,20.0,188.67,188.66,0.063]
[1739748339523,35.41184853,188.67,188.66,0.063]
[1739748339729,20.0,188.63,188.59,0.063]
[1739748339942,33.4,188.67,188.59,0.063]
[1739748340229,0.03,188.69,188.6,7.8375183]
[1739748340430,20.0,188.68,188.6,7.8375183]
[1739748340636,0.03,188.69,188.61,5.3019]
[1739748341133,20.0,188.67,188.61,5.3019]
[1739748341515,20.0,188.67,188.61,13.1394183]
[1739748341738,0.03,188.69,188.63,7.8375183]
[1739748342699,0.03,188.69,188.64,5.3011]
[1739748343710,0.03,188.69,188.64,13.1386183]
[1739748346642,0.03,188.69,188.63,7.8375183]
[1739748348124,0.03,188.69,188.64,7.8375183]
[1739748349246,0.03,188.69,188.64,13.1385183]
[1739748350138,0.03,188.69,188.62,7.8375183]
[1739748350337,0.03,188.69,188.61,5.3019]
[1739748350726,0.03,188.69,188.61,13.1394183]
[1739748352040,0.03,188.69,188.64,0.03]
[1739748352248,13.44184853,188.69,188.64,0.03]
[1739748352417,20.0,188.68,188.64,0.03]
[1739748353458,5.3002,188.67,188.64,0.03]
[1739748359543,25.3,188.68,188.64,0.03]
[1739748359747,115.73,188.69,188.64,0.03]
[1739748360045,121.0297,188.69,188.64,0.03]
[1739748363246,0.03,188.69,188.64,0.03]
[1739748367151,0.03,188.69,188.64,7.8675183]
[1739748367349,0.03,188.69,188.65,7.8375183]
[1739748368751,0.03,188.69,188.64,7.8675183]
[1739748368948,0.03,188.69,188.64,0.03]
[1739748369251,0.03,188.69,188.64,7.8675183]
[1739748370352,0.03,188.69,188.64,13.1685183]
[1739748371752,0.03,188.69,188.64,0.03]
[1739748373543,8.35319244,188.69,188.64,0.03]
[1739748374059,5.2999,188.68,188.64,0.03]
[1739748375131,8.32319244,188.66,188.64,0.03]
[1739748375753,5.3008,188.65,188.64,0.03]
[1739748376057,8.32319244,188.66,188.64,0.03]
[1739748376655,8.32319244,188.66,188.64,7.8675183]
[1739748377759,8.32319244,188.66,188.64,0.03]
[1739748378759,5.3297,188.69,188.64,0.03]
[1739748381058,13.65289244,188.69,188.64,0.03]
[1739748381367,8.35319244,188.69,188.64,7.8675183]
[1739748382555,8.35319244,188.69,188.65,7.8375183]
[1739748382733,8.35319244,188.69,188.66,7.8375183]
[1739748383059,8.35319244,188.69,188.64,5.331]
[1739748383060,8.35319244,188.69,188.68,7.8375183]
[1739748383446,0.03,188.69,188.68,7.8375183]
[1739748384740,0.03,188.69,188.67,13.1376183]
[1739748385872,0.03,188.69,188.67,7.8375183]
[1739748386958,0.03,188.69,188.66,7.8375183]
[1739748387161,0.03,188.69,188.64,44.22380684]
[1739748387345,0.03,188.69,188.64,0.03]
[1739748390169,5.3296,188.69,188.64,0.03]
[1739748391158,13.41184853,188.68,188.64,0.03]
[1739748393170,5.3002,188.67,188.64,0.03]
[1739748393870,13.62339244,188.67,188.64,0.03]
[1739748395274,8.32319244,188.67,188.64,0.03]
[1739748395782,8.32319244,188.67,188.64,7.8675183]
[1739748395951,8.32319244,188.68,188.65,7.8375183]
[1739748396375,8.32319244,188.68,188.64,7.8675183]
[1739748397059,8.32319244,188.68,188.64,13.1684183]
[1739748397672,0.03,188.69,188.64,13.1684183]
[1739748402878,0.03,188.69,188.64,0.03]
[1739748405076,5.3296,188.69,188.64,0.03]
[1739748405585,8.32319244,188.68,188.64,0.03]
[1739748406457,13.62319244,188.68,188.64,0.03]
[1739748418398,5.3,188.68,188.64,0.03]
[1739748418691,18.5499,188.68,188.64,0.03]
[1739748420402,19.5499,188.68,188.64,0.03]
[1739748420818,41.53874853,188.65,188.64,0.03]
[1739748421103,28.1269,188.65,188.64,0.03]
[1739748421287,90.62319244,188.66,188.64,0.03]
[1739748422401,5.3008,188.65,188.64,0.03]
[1739748424299,18.71264853,188.65,188.64,0.03]
[1739748427220,129.11184853,188.64,188.59,0.063]
[1739748427380,13.41184853,188.62,188.59,0.063]
[1739748428211,5.3019,188.61,188.59,0.063]
[1739748428908,95.71184853,188.6,188.59,0.063]
[1739748429210,1.0,188.59,188.56,0.063]
[1739748429691,97.71184853,188.6,188.56,0.063]
[1739748429892,1.0,188.59,188.56,0.063]
[1739748430085,5.303,188.57,188.56,0.063]
[1739748431809,33.4,188.58,188.56,0.063]
[1739748434017,8.32517009,188.6,188.56,0.063]
[1739748434317,8.32517009,188.65,188.59,7.8375183]
[1739748434503,8.32517009,188.65,188.61,7.8375183]
[1739748435609,8.32517009,188.65,188.6,7.8375183]
[1739748436826,38.59296976,188.67,188.6,7.8375183]
[1739748436827,5.3002,188.67,188.6,7.8375183]
[1739748438191,13.41184853,188.66,188.58,7.8375183]
[1739748439316,5.3008,188.65,188.58,7.8375183]
[1739748439892,5.3008,188.65,188.58,13.1401183]
[1739748440793,5.3008,188.65,188.58,7.8375183]
[1739748442716,5.3008,188.65,188.57,13.1405183]
[1739748446020,13.41184853,188.64,188.57,7.8375183]
[1739748446205,13.41184853,188.64,188.54,13.2043183]
[1739748446413,82.3,188.63,188.54,13.2043183]
[1739748446732,95.71184853,188.62,188.57,0.03]
[1739748447229,5.3019,188.61,188.57,0.03]
[1739748447629,95.71184853,188.6,188.57,0.03]
[1739748449508,5.3025,188.59,188.57,0.03]
[1739748449837,82.3,188.6,188.57,0.03]
[1739748452320,5.302,188.61,188.57,0.03]
[1739748452911,5.3016,188.63,188.57,0.03]
[1739748453108,5.3638,188.65,188.58,7.8375183]
[1739748453411,0.063,188.65,188.59,7.8375183]
[1739748453612,0.063,188.65,188.6,7.8375183]
[1739748455024,0.063,188.65,188.59,7.8375183]
[1739748455339,0.063,188.65,188.57,0.03]
[1739748455340,13.47484853,188.65,188.57,7.8675183]
[1739748455519,13.47484853,188.65,188.57,0.03]
[1739748456330,5.3011,188.64,188.57,0.03]
[1739748458817,5.3011,188.64,188.57,7.8675183]
[1739748459142,5.3641,188.64,188.58,7.8375183]
[1739748459317,0.063,188.64,188.58,7.8375183]
[1739748460842,0.063,188.64,188.57,13.1704183]
[1739748463432,0.063,188.64,188.58,7.8375183]
[1739748463636,0.063,188.64,188.58,13.1402183]
[1739748463962,82.3,188.63,188.57,0.03]
[1739748464242,13.41184853,188.58,188.57,0.03]
[1739748464421,97.71184853,188.58,188.57,0.03]
[1739748464751,97.71184853,188.58,188.56,0.03]
[1739748464752,14.41184853,188.57,188.56,0.03]
[1739748465051,1.0,188.55,188.54,0.063]
[1739748465230,14.41184853,188.55,188.54,0.063]
[1739748465415,34.41184853,188.54,188.53,0.063]
[1739748465614,39.71574853,188.54,188.53,0.063]
[1739748466220,38.71574853,188.54,188.53,0.063]
[1739748466938,38.71574853,188.54,188.52,0.063]
[1739748467339,14.41184853,188.53,188.52,0.063]
[1739748467516,47.81184853,188.53,188.52,0.063]
[1739748467721,53.11594853,188.53,188.52,0.063]
[1739748468126,53.11594853,188.53,188.45,0.03]
[1739748468127,20.0,188.49,188.45,0.03]
[1739748468351,13.41184853,188.48,188.45,0.03]
[1739748470228,18.71744853,188.48,188.45,0.03]
[1739748470430,33.4,188.49,188.45,0.03]
[1739748471522,8.32517009,188.52,188.46,12.29424851]
[1739748471729,8.32517009,188.52,188.47,12.35724851]
[1739748473741,5.367,188.54,188.47,0.063]
[1739748475649,5.367,188.54,188.47,12.35724851]
[1739748475849,0.063,188.54,188.49,12.29424851]
[1739748476050,0.063,188.54,188.5,12.29424851]
[1739748476589,0.063,188.54,188.51,12.29424851]
[1739748477775,0.063,188.54,188.52,5.3044]
[1739748478765,0.063,188.54,188.53,12.29424851]
[1739748479865,0.063,188.54,188.53,17.59834851]
[1739748483051,0.063,188.54,188.53,18.3937407]
[1739748483761,0.063,188.54,188.53,17.59834851]
[1739748484552,0.063,188.54,188.53,62.58754256]
[1739748485447,0.063,188.54,188.53,75.99939109]
[1739748485976,0.063,188.54,188.53,61.79215535]
[1739748490377,0.063,188.54,188.53,56.48805535]
[1739748491186,0.063,188.54,188.53,12.29424851]
[1739748491492,0.063,188.54,188.52,0.03]
[1739748491863,0.063,188.54,188.52,12.32424851]
[1739748494177,0.063,188.54,188.53,12.29424851]
[1739748498577,0.063,188.54,188.52,7.8913705]
[1739748498783,0.063,188.54,188.52,0.03]
[1739748499205,0.063,188.54,188.52,7.8913705]
[1739748502697,0.063,188.54,188.53,7.8613705]
[1739748503683,0.063,188.54,188.53,13.1654705]
[1739748507198,0.063,188.54,188.53,57.35927734]
[1739748507911,8.38817009,188.64,188.56,20.0]
[1739748508127,8.38817009,188.64,188.6,7.8613705]
[1739748508319,5.3641,188.64,188.6,7.8613705]
[1739748508613,5.3641,188.64,188.58,7.8613705]
[1739748508784,0.063,188.64,188.59,7.8613705]
[1739748509096,0.063,188.64,188.6,7.8613705]
[1739748509298,0.063,188.64,188.59,7.8613705]
[1739748510093,0.063,188.64,188.6,7.8613705]
[1739748512294,0.063,188.64,188.61,7.8613705]
[1739748512997,0.063,188.64,188.6,7.8613705]
[1739748514705,0.063,188.64,188.6,13.1635705]
[1739748515089,0.063,188.64,188.6,7.8613705]
[1739748518020,0.063,188.64,188.61,7.8613705]
[1739748518821,0.063,188.64,188.62,7.8613705]
[1739748519320,0.063,188.64,188.63,7.8613705]
[1739748519715,0.063,188.64,188.63,13.1626705]
[1739748519906,0.063,188.64,188.63,7.8613705]
[1739748523401,0.063,188.64,188.63,13.1626705]
[1739748523722,0.063,188.64,188.63,7.8613705]
[1739748524827,0.063,188.64,188.63,13.1626705]
[1739748526638,0.063,188.64,188.63,7.8613705]
[1739748526828,0.063,188.64,188.63,13.1626705]
[1739748527217,0.063,188.64,188.63,7.8613705]
[1739748530329,6.43190522,188.69,188.63,7.8613705]
[1739748531122,6.43190522,188.69,188.59,7.8613705]
[1739748531319,82.3,188.68,188.59,7.8613705]
[1739748531506,82.3,188.68,188.63,7.8613705]
[1739748531709,6.43190522,188.69,188.63,7.8613705]
[1739748532727,6.43190522,188.69,188.63,13.1625705]
[1739748533350,1.13220522,188.69,188.63,13.1625705]
[1739748535222,1.13220522,188.69,188.65,7.8613705]
[1739748535845,6.4092,188.7,188.67,7.8613705]
[1739748536151,8.38817009,188.73,188.67,7.8613705]
[1739748536546,8.38817009,188.73,188.7,7.8613705]
[1739748536723,8.38817009,188.73,188.68,7.8613705]
[1739748536926,5.3616,188.73,188.66,7.8613705]
[1739748537125,5.3616,188.73,188.65,7.8613705]
[1739748537335,5.3616,188.73,188.64,7.8613705]
[1739748538456,13.41184853,188.72,188.61,7.8613705]
[1739748538658,1.6085,188.69,188.59,5.3024]
[1739748538827,1.6085,188.69,188.58,7.8613705]
[1739748539549,1.6085,188.69,188.58,13.1640705]
[1739748539756,1.6085,188.69,188.59,7.8613705]
[1739748540251,1.6085,188.69,188.6,7.8613705]
[1739748540558,5.2999,188.68,188.59,7.8613705]
[1739748540859,5.2999,188.68,188.58,13.1640705]
[1739748541053,5.2999,188.68,188.59,7.8613705]
[1739748541629,6.9082,188.69,188.6,13.1635705]
[1739748541833,6.9082,188.69,188.62,7.8613705]
[1739748542742,39.4865,188.7,188.64,7.8613705]
[1739748543060,6.0865,188.7,188.65,7.8613705]
[1739748543254,5.2988,188.72,188.66,7.8613705]
[1739748543853,18.71064853,188.72,188.63,7.8613705]
[1739748544056,18.71064853,188.72,188.6,27.8613705]
[1739748544243,95.71184853,188.71,188.6,27.8613705]
[1739748544449,82.3,188.71,188.62,7.8613705]
[1739748545263,82.3,188.71,188.61,7.8613705]
[1739748545437,13.41184853,188.7,188.61,7.8613705]
[1739748545637,13.41184853,188.7,188.6,7.8613705]
[1739748546461,5.2996,188.69,188.6,7.8613705]
[1739748546670,5.2996,188.69,188.6,13.1634705]
[1739748547073,5.2996,188.69,188.61,7.8613705]
[1739748547242,5.2994,188.7,188.62,7.8613705]
[1739748547443,5.2991,188.71,188.64,7.8613705]
[1739748548150,13.62407009,188.72,188.66,7.8613705]
[1739748548776,8.32517009,188.72,188.66,13.1617705]